bitfinex/quotes_BTCUSD_20230907
["timestamp","ask_amount","ask_price","bid_price","bid_amount"]
[1694059581736,4.26539399,25859.0,25858.0,0.004867]
[1694059581941,4.26521399,25859.0,25858.0,0.004867]
[1694059582194,4.26635399,25859.0,25858.0,0.004867]
[1694059582414,4.26419399,25859.0,25858.0,0.004867]
[1694059582663,4.27259399,25859.0,25858.0,0.004867]
[1694059582905,4.27475399,25859.0,25858.0,0.004867]
[1694059583155,4.27301399,25859.0,25858.0,0.004867]
[1694059583385,4.27289399,25859.0,25858.0,0.004867]
[1694059583611,4.27211399,25859.0,25858.0,0.004867]
[1694059583862,4.26893399,25859.0,25858.0,0.004867]
[1694059584095,4.26827399,25859.0,25858.0,0.004867]
[1694059584314,4.26845399,25859.0,25858.0,0.004867]
[1694059584555,4.26857399,25859.0,25858.0,0.004867]
[1694059584839,4.26815399,25859.0,25858.0,0.004867]
[1694059585062,4.26827399,25859.0,25858.0,0.004867]
[1694059585283,4.58056398,25859.0,25858.0,0.004867]
[1694059585492,4.58050398,25859.0,25858.0,0.004867]
[1694059585836,4.58086398,25859.0,25858.0,0.004867]
[1694059586039,4.58098398,25859.0,25858.0,0.004867]
[1694059586488,4.58110398,25859.0,25858.0,0.004867]
[1694059586729,4.28453399,25859.0,25858.0,0.004867]
[1694059586934,4.28441399,25859.0,25858.0,0.004867]
[1694059587681,4.24175399,25859.0,25858.0,0.003867]
[1694059587922,4.24157399,25859.0,25858.0,0.003867]
[1694059588119,4.26587399,25859.0,25858.0,0.003867]
[1694059588391,4.26725399,25859.0,25858.0,0.003867]
[1694059588814,4.32544978,25859.0,25858.0,0.003867]
[1694059588866,4.32436978,25859.0,25858.0,0.003867]
[1694059589067,4.32550978,25859.0,25858.0,0.003867]
[1694059589266,4.34944978,25859.0,25858.0,0.003867]
[1694059589491,4.34920978,25859.0,25858.0,0.003867]
[1694059589697,4.34908978,25859.0,25858.0,0.003867]
[1694059589836,4.34902978,25859.0,25858.0,0.003867]
[1694059590223,4.32346978,25859.0,25858.0,0.003867]
[1694059590444,4.32352978,25859.0,25858.0,0.003867]
[1694059590687,4.34722978,25859.0,25858.0,0.003867]
[1694059590905,4.34854978,25859.0,25858.0,0.003867]
[1694059591161,4.34860978,25859.0,25858.0,0.003867]
[1694059591387,4.34854978,25859.0,25858.0,0.003867]
[1694059591583,4.34866978,25859.0,25858.0,0.003867]
[1694059591839,4.34842978,25859.0,25858.0,0.003867]
[1694059592071,4.34860978,25859.0,25858.0,0.003867]
[1694059592283,4.34830978,25859.0,25858.0,0.003867]
[1694059592502,4.34836978,25859.0,25858.0,0.003867]
[1694059592718,4.34902978,25859.0,25858.0,0.003867]
[1694059593154,4.35214978,25859.0,25858.0,0.003867]
[1694059593366,4.35220978,25859.0,25858.0,0.003867]
[1694059593547,4.35232978,25859.0,25858.0,0.003867]
[1694059593778,4.35202978,25859.0,25858.0,0.003867]
[1694059593950,4.35154978,25859.0,25858.0,0.003867]
[1694059594151,4.35190978,25859.0,25858.0,0.003867]
[1694059594364,4.35178978,25859.0,25858.0,0.003867]
[1694059594570,4.35154978,25859.0,25858.0,0.003867]
[1694059594795,4.35310978,25859.0,25858.0,0.003867]
[1694059595000,4.34902978,25859.0,25858.0,0.003867]
[1694059595234,4.35040978,25859.0,25858.0,0.003867]
[1694059595448,4.35376978,25859.0,25858.0,0.003867]
[1694059595665,4.35370978,25859.0,25858.0,0.003867]
[1694059595874,4.35346978,25859.0,25858.0,0.003867]
[1694059596079,4.35052978,25859.0,25858.0,0.003867]
[1694059596327,4.32904978,25859.0,25858.0,0.193867]
[1694059596531,4.32550978,25859.0,25858.0,0.193867]
[1694059596744,4.32634978,25859.0,25858.0,0.193867]
[1694059596982,4.32694978,25859.0,25858.0,0.193867]
[1694059597191,4.32712978,25859.0,25858.0,0.193867]
[1694059597321,4.32706978,25859.0,25858.0,0.193867]
[1694059597523,4.32736978,25859.0,25858.0,0.003867]
[1694059597739,4.32796978,25859.0,25858.0,0.003867]
[1694059597952,4.32808978,25859.0,25858.0,0.003867]
[1694059598162,4.32814978,25859.0,25858.0,0.003867]
[1694059598372,4.32814978,25859.0,25854.0,0.15510525]
[1694059598373,0.04,25855.0,25854.0,0.15510525]
[1694059598581,3.04891629,25855.0,25854.0,0.01802596]
[1694059598801,3.04891629,25855.0,25854.0,0.06290413]
[1694059598802,3.04891616,25855.0,25854.0,0.06290413]
[1694059599007,3.04891616,25855.0,25854.0,0.01802596]
[1694059599210,3.43556143,25855.0,25854.0,0.01802596]
[1694059599710,3.45956143,25855.0,25854.0,0.01802596]
[1694059600139,3.48356143,25855.0,25854.0,0.01802596]
[1694059602069,3.48356143,25855.0,25854.0,0.06263372]
[1694059602281,3.48356143,25855.0,25854.0,0.01802596]
[1694059604043,3.54920143,25855.0,25854.0,0.01802596]
[1694059604257,3.54872143,25855.0,25854.0,0.01802596]
[1694059604466,3.55346143,25855.0,25854.0,0.01802596]
[1694059604695,3.55220143,25855.0,25854.0,0.01802596]
[1694059604915,3.55304143,25855.0,25854.0,0.01802596]
[1694059605124,3.55454143,25855.0,25854.0,0.01802596]
[1694059605353,3.55562143,25855.0,25854.0,0.01802596]
[1694059605564,3.55628143,25855.0,25853.0,0.01802596]
[1694059605786,3.11701254,25854.0,25853.0,0.01802596]
[1694059606004,3.12787751,25854.0,25853.0,0.01802596]
[1694059607287,3.15187751,25854.0,25853.0,0.01802596]
[1694059607499,3.17587751,25854.0,25853.0,0.01802596]
[1694059611238,0.04,25853.0,25852.0,0.01802596]
[1694059611458,3.13410254,25853.0,25852.0,0.01802596]
[1694059611901,3.13410254,25853.0,25852.0,0.06229545]
[1694059612113,3.13410254,25853.0,25852.0,0.01802596]
[1694059612549,3.15410254,25853.0,25852.0,0.01802596]
[1694059612769,3.17510254,25853.0,25852.0,0.06237102]
[1694059614048,3.18699915,25853.0,25852.0,0.06237102]
[1694059615128,3.16699915,25853.0,25852.0,0.06237102]
[1694059615558,3.16999915,25853.0,25852.0,0.06237102]
[1694059615786,3.19399915,25853.0,25852.0,0.06237102]
[1694059616019,3.16999915,25853.0,25852.0,0.06237102]
[1694059616288,3.19399915,25853.0,25852.0,0.06237102]
[1694059616926,3.21699915,25853.0,25852.0,0.06237102]
[1694059620090,3.19699915,25853.0,25852.0,0.06237102]
[1694059620305,3.20510254,25853.0,25852.0,0.06237102]
[1694059620936,3.20510254,25853.0,25852.0,0.01802596]
[1694059622202,3.22510254,25853.0,25852.0,0.01802596]
[1694059622632,3.50374143,25853.0,25852.0,0.01802596]
[1694059623057,3.34560254,25853.0,25851.0,0.01802596]
[1694059623265,3.29769254,25852.0,25851.0,0.01802596]
[1694059623472,3.57631975,25852.0,25851.0,0.01802596]
[1694059625395,3.60031975,25852.0,25851.0,0.01802596]
[1694059626074,3.62431975,25852.0,25851.0,0.01802596]
[1694059628430,3.34569254,25852.0,25851.0,0.01802596]
[1694059637991,3.32569254,25852.0,25851.0,0.01802596]
[1694059638322,3.34569254,25852.0,25851.0,0.01802596]
[1694059640836,3.32569254,25852.0,25851.0,0.01802596]
[1694059641028,3.34569254,25852.0,25851.0,0.01802596]
[1694059641708,3.35765454,25852.0,25851.0,0.01802596]
[1694059642879,3.35765454,25852.0,25851.0,0.06109095]
[1694059643074,3.23715454,25852.0,25851.0,0.06109095]
[1694059644492,3.21715454,25852.0,25851.0,0.06109095]
[1694059645407,0.48660727,25852.0,25851.0,0.06109095]
[1694059646401,2.03387527,25852.0,25851.0,0.06109095]
[1694059648962,2.09453615,25852.0,25851.0,0.06109095]
[1694059651142,2.86817015,25852.0,25851.0,0.06109095]
[1694059657327,2.86817015,25852.0,25851.0,0.05609095]
[1694059658543,3.25481542,25852.0,25851.0,0.05609095]
[1694059659990,3.14679736,25852.0,25851.0,0.05609095]
[1694059664612,3.14679736,25852.0,25851.0,0.01302596]
[1694059665072,3.14693481,25852.0,25851.0,0.01302596]
[1694059665322,3.14693481,25852.0,25851.0,0.05611063]
[1694059665804,3.14693481,25852.0,25851.0,0.01302596]
[1694059666028,3.25481542,25852.0,25851.0,0.05611063]
[1694059667871,3.53359881,25852.0,25851.0,0.05611063]
[1694059668108,3.25481542,25852.0,25851.0,0.05611063]
[1694059674926,2.08257415,25852.0,25851.0,0.05611063]
[1694059675121,2.36137025,25852.0,25851.0,0.05611063]
[1694059679265,2.36137025,25852.0,25851.0,0.20784685]
[1694059682471,0.81410225,25852.0,25851.0,0.20784685]
[1694059682701,2.36137025,25852.0,25851.0,0.20784685]
[1694059682925,2.74801552,25852.0,25851.0,0.20784685]
[1694059685291,2.74800739,25852.0,25851.0,0.20784685]
[1694059687904,3.52164139,25852.0,25851.0,0.20784685]
[1694059688769,3.52164139,25852.0,25851.0,0.39784685]
[1694059703568,3.52164139,25852.0,25851.0,0.24611063]
[1694059708655,3.24285342,25852.0,25851.0,0.24611063]
[1694059709341,3.24285342,25852.0,25851.0,0.01302596]
[1694059711468,3.24285342,25852.0,25851.0,0.01415547]
[1694059712529,3.24285342,25852.0,25851.0,0.01382235]
[1694059719441,3.24285342,25852.0,25851.0,0.20382235]
[1694059719651,3.24285342,25852.0,25851.0,0.20302596]
[1694059720593,3.24285342,25852.0,25851.0,0.2038389]
[1694059728140,3.18219254,25852.0,25851.0,0.2038389]
[1694059728590,3.18219254,25852.0,25851.0,0.20302596]
[1694059733245,3.18219254,25852.0,25851.0,0.24583425]
[1694059733461,3.18219254,25852.0,25851.0,0.24664719]
[1694059733665,2.79554727,25852.0,25851.0,0.24664719]
[1694059736156,2.80761891,25852.0,25851.0,0.24664719]
[1694059761043,2.80761891,25852.0,25851.0,0.2038389]
[1694059761451,2.80761891,25852.0,25851.0,0.24672102]
[1694059773550,3.12139224,25852.0,25851.0,0.20302596]
[1694059773813,3.50803751,25852.0,25851.0,0.20302596]
[1694059774016,3.49596587,25852.0,25851.0,0.24590601]
[1694059774327,3.50770797,25852.0,25851.0,0.24590601]
[1694059774546,3.61646587,25852.0,25851.0,0.23369299]
[1694059774750,3.69116587,25852.0,25851.0,0.24671895]
[1694059774893,3.69038587,25852.0,25851.0,0.24671895]
[1694059775103,3.69020587,25852.0,25851.0,0.24671895]
[1694059775280,3.68978587,25852.0,25851.0,0.24671895]
[1694059775482,3.68930587,25852.0,25851.0,0.24671895]
[1694059775686,3.68954587,25852.0,25851.0,0.24671895]
[1694059775893,3.68930587,25852.0,25851.0,0.24671895]
[1694059776093,3.68882587,25852.0,25851.0,0.24671895]
[1694059776300,3.68804587,25852.0,25851.0,0.24671895]
[1694059776502,3.68774587,25852.0,25851.0,0.24671895]
[1694059776724,3.68672587,25852.0,25851.0,0.24671895]
[1694059776931,3.68648587,25852.0,25851.0,0.24671895]
[1694059777137,3.68594587,25852.0,25851.0,0.24671895]
[1694059777342,3.68456587,25852.0,25851.0,0.24671895]
[1694059777537,3.68426587,25852.0,25851.0,0.24671895]
[1694059777741,3.68384587,25852.0,25851.0,0.24671895]
[1694059777946,3.68462587,25852.0,25851.0,0.24671895]
[1694059778149,3.68438587,25852.0,25851.0,0.24671895]
[1694059778349,3.68402587,25852.0,25851.0,0.24671895]
[1694059778569,3.68372587,25852.0,25851.0,0.24671895]
[1694059778929,3.68294587,25852.0,25851.0,0.24671895]
[1694059779107,3.61646587,25852.0,25851.0,0.24671895]
[1694059784494,3.71680587,25852.0,25851.0,0.24671895]
[1694059784705,3.71560587,25852.0,25851.0,0.2038389]
[1694059784905,3.71530587,25852.0,25851.0,0.2038389]
[1694059785112,3.71494587,25852.0,25851.0,0.2038389]
[1694059785311,3.71524587,25852.0,25851.0,0.2038389]
[1694059785514,3.71488587,25852.0,25851.0,0.20302596]
[1694059785719,3.71464587,25852.0,25851.0,0.20302596]
[1694059785923,3.71428587,25852.0,25851.0,0.20302596]
[1694059786144,3.71314587,25852.0,25851.0,0.20302596]
[1694059786431,3.67338587,25852.0,25851.0,0.20302596]
[1694059786642,3.71284587,25852.0,25851.0,0.20302596]
[1694059786864,3.71146587,25852.0,25851.0,0.20302596]
[1694059787093,3.71128587,25852.0,25851.0,0.20302596]
[1694059787321,3.71206587,25852.0,25851.0,0.20302596]
[1694059787549,3.71170587,25852.0,25851.0,0.20302596]
[1694059787758,3.71158587,25852.0,25851.0,0.20302596]
[1694059787956,3.71140587,25852.0,25851.0,0.20302596]
[1694059788162,3.71128587,25852.0,25851.0,0.20302596]
[1694059788378,3.71104587,25852.0,25851.0,0.20302596]
[1694059788576,3.77152949,25852.0,25851.0,0.20302596]
[1694059788778,3.77146949,25852.0,25851.0,0.20302596]
[1694059788988,3.77146949,25852.0,25851.0,0.19]
[1694059788989,3.77344949,25852.0,25851.0,0.19]
[1694059789193,3.77338949,25852.0,25851.0,0.19]
[1694059789403,3.77296949,25852.0,25851.0,0.19]
[1694059789611,3.77272949,25852.0,25851.0,0.19]
[1694059789828,3.7868186,25852.0,25851.0,0.19]
[1694059790031,3.77242949,25852.0,25851.0,0.19]
[1694059790244,3.78561389,25852.0,25851.0,0.19]
[1694059790459,3.78543389,25852.0,25851.0,0.19]
[1694059790661,3.78513389,25852.0,25851.0,0.19]
[1694059790865,3.78339389,25852.0,25851.0,0.19]
[1694059791063,3.78303389,25852.0,25851.0,0.19]
[1694059791275,3.78279389,25852.0,25851.0,0.19]
[1694059791483,3.76936949,25852.0,25851.0,0.19]
[1694059791698,3.77050949,25852.0,25851.0,0.19]
[1694059791913,3.77032949,25852.0,25851.0,0.19]
[1694059792119,3.77020949,25852.0,25851.0,0.19]
[1694059792547,3.77002949,25852.0,25851.0,0.19]
[1694059792823,3.76540949,25852.0,25851.0,0.19]
[1694059793038,3.76732949,25852.0,25851.0,0.19]
[1694059793244,3.76846949,25852.0,25851.0,0.19]
[1694059793457,3.76882949,25852.0,25851.0,0.19]
[1694059793674,3.77044949,25852.0,25851.0,0.19]
[1694059793939,4.10166949,25852.0,25851.0,0.19]
[1694059794116,4.10190949,25852.0,25851.0,0.19]
[1694059794375,4.10304949,25852.0,25851.0,0.19]
[1694059794577,4.10628949,25852.0,25851.0,0.19]
[1694059794784,4.10604949,25852.0,25851.0,0.19]
[1694059794968,4.10610949,25852.0,25851.0,0.19]
[1694059795187,4.10544949,25852.0,25851.0,0.19]
[1694059795417,3.79599616,25852.0,25851.0,0.19]
[1694059795648,3.79647616,25852.0,25851.0,0.19]
[1694059795881,4.1099794,25852.0,25851.0,0.19]
[1694059796135,4.1100394,25852.0,25851.0,0.19]
[1694059796338,4.1097994,25852.0,25851.0,0.19]
[1694059796544,4.1099194,25852.0,25851.0,0.19]
[1694059796756,4.1098594,25852.0,25851.0,0.19]
[1694059796991,4.1097394,25852.0,25851.0,0.19]
[1694059797204,3.80097616,25852.0,25851.0,0.19]
[1694059797417,3.81327616,25852.0,25851.0,0.19]
[1694059797636,3.81417616,25852.0,25851.0,0.19]
[1694059797851,3.79107616,25852.0,25851.0,0.19]
[1694059798058,3.76683616,25852.0,25851.0,0.19]
[1694059798353,3.81471616,25852.0,25851.0,0.19]
[1694059798555,3.81459616,25852.0,25851.0,0.19]
[1694059798794,3.81489616,25852.0,25851.0,0.19]
[1694059799058,3.81465616,25852.0,25851.0,0.19]
[1694059799275,3.81459616,25852.0,25851.0,0.19]
[1694059799489,3.81465616,25852.0,25851.0,0.19]
[1694059799710,3.81033616,25852.0,25851.0,0.19]
[1694059799933,3.81171616,25852.0,25851.0,0.19]
[1694059800136,3.81255616,25852.0,25851.0,0.19]
[1694059800350,3.81153616,25852.0,25851.0,0.19]
[1694059800561,3.81171616,25852.0,25851.0,0.19]
[1694059800791,3.81195616,25852.0,25851.0,0.19]
[1694059801216,3.81231616,25852.0,25851.0,0.19]
[1694059801427,3.81159616,25852.0,25851.0,0.19]
[1694059801610,3.81033616,25852.0,25851.0,0.19]
[1694059801817,3.81093616,25852.0,25851.0,0.19]
[1694059802032,3.84059071,25852.0,25851.0,0.19]
[1694059802236,3.84005071,25852.0,25851.0,0.19]
[1694059802449,3.83915071,25852.0,25851.0,0.19]
[1694059802663,3.84125071,25852.0,25851.0,0.19]
[1694059802889,3.84101071,25852.0,25851.0,0.19]
[1694059803100,3.83951071,25852.0,25851.0,0.19]
[1694059803301,3.83957071,25852.0,25851.0,0.19]
[1694059803521,3.83915071,25852.0,25851.0,0.19]
[1694059803708,4.25007071,25852.0,25851.0,0.19]
[1694059803913,4.25133071,25852.0,25851.0,0.19]
[1694059804120,4.25031071,25852.0,25851.0,0.19]
[1694059804335,4.25751071,25852.0,25851.0,0.19]
[1694059804575,4.25337071,25852.0,25851.0,0.19]
[1694059804781,4.25343071,25852.0,25851.0,0.19]
[1694059805002,4.25457071,25852.0,25851.0,0.19]
[1694059805212,4.25451071,25852.0,25851.0,0.19]
[1694059805438,4.25367071,25852.0,25851.0,0.19]
[1694059805649,4.25265071,25852.0,25851.0,0.19]
[1694059805855,4.25253071,25852.0,25851.0,0.19]
[1694059806063,4.25241071,25852.0,25851.0,0.19]
[1694059806262,4.25169071,25852.0,25851.0,0.19]
[1694059806489,4.25073071,25852.0,25851.0,0.19]
[1694059806696,4.50540475,25852.0,25851.0,0.19]
[1694059806910,4.50540475,25852.0,25851.0,0.12658944]
[1694059806911,4.40687926,25852.0,25851.0,0.12658944]
[1694059807139,4.40705926,25852.0,25851.0,0.070035]
[1694059807353,4.38311926,25852.0,25851.0,0.070035]
[1694059807557,4.35887926,25852.0,25851.0,0.070035]
[1694059807780,4.38287926,25852.0,25851.0,0.070035]
[1694059807995,4.40693926,25852.0,25851.0,0.070035]
[1694059808202,4.40429926,25852.0,25851.0,0.070035]
[1694059808410,4.40435926,25852.0,25851.0,0.070035]
[1694059808622,4.40633926,25852.0,25851.0,0.070035]
[1694059809127,4.40513926,25852.0,25851.0,0.070035]
[1694059809337,4.35948475,25852.0,25851.0,0.070035]
[1694059809566,5.26050475,25852.0,25851.0,0.070035]
[1694059809781,5.40564475,25852.0,25851.0,0.070035]
[1694059810012,5.40516475,25852.0,25851.0,0.070035]
[1694059810249,5.40276475,25852.0,25851.0,0.070035]
[1694059810462,5.40324475,25852.0,25851.0,0.070035]
[1694059810945,5.40240475,25852.0,25851.0,0.070035]
[1694059811159,5.40444475,25852.0,25851.0,0.070035]
[1694059811387,5.40432475,25852.0,25851.0,0.070035]
[1694059811641,5.41212475,25852.0,25851.0,0.070035]
[1694059811886,5.41080475,25852.0,25851.0,0.070035]
[1694059812088,5.40876475,25852.0,25851.0,0.070035]
[1694059812296,5.41056475,25852.0,25851.0,0.070035]
[1694059812501,4.50984475,25852.0,25851.0,0.070035]
[1694059812705,5.41176475,25852.0,25851.0,0.070035]
[1694059812917,5.40804475,25852.0,25851.0,0.070035]
[1694059813125,5.40792475,25852.0,25851.0,0.070035]
[1694059813333,5.40780475,25852.0,25851.0,0.070035]
[1694059813543,5.40744475,25852.0,25851.0,0.070035]
[1694059813759,0.06,25847.0,25846.0,0.01401647]
[1694059813962,3.96362528,25847.0,25846.0,0.01401647]
[1694059814202,4.65027055,25847.0,25846.0,0.01302596]
[1694059814400,4.37192654,25847.0,25846.0,0.01302596]
[1694059814938,4.55087354,25847.0,25846.0,0.01302596]
[1694059816801,4.58731599,25847.0,25846.0,0.01302596]
[1694059816978,4.57487354,25847.0,25846.0,0.01302596]
[1694059817726,4.57487354,25847.0,25846.0,0.05545382]
[1694059818578,4.57487354,25847.0,25846.0,0.056285]
[1694059819422,4.57487354,25847.0,25846.0,0.01385714]
[1694059819714,4.57487354,25847.0,25846.0,0.01302596]
[1694059820541,4.58850576,25847.0,25846.0,0.01302596]
[1694059821385,4.58850576,25847.0,25846.0,0.05545382]
[1694059821577,4.57487354,25847.0,25846.0,0.01385714]
[1694059823173,4.57487354,25847.0,25846.0,0.08385714]
[1694059826614,4.5880994,25847.0,25846.0,0.08385714]
[1694059826845,4.57487354,25847.0,25846.0,0.08385714]
[1694059828542,4.58743213,25847.0,25846.0,0.08385714]
[1694059829432,4.57487354,25847.0,25846.0,0.08385714]
[1694059829784,4.58562557,25847.0,25846.0,0.08385714]
[1694059831870,4.57487354,25847.0,25846.0,0.12620941]
[1694059833652,4.85321755,25847.0,25846.0,0.12620941]
[1694059839714,4.57487354,25847.0,25846.0,0.12620941]
[1694059841791,4.55904533,25847.0,25846.0,0.12620941]
[1694059847016,2.49544248,25847.0,25846.0,0.1450765]
[1694059848174,3.26922648,25847.0,25846.0,0.1450765]
[1694059848901,3.3299008,25847.0,25846.0,0.1450765]
[1694059856257,3.30807382,25847.0,25846.0,0.1450765]
[1694059856882,3.28807382,25847.0,25846.0,0.1450765]
[1694059857108,3.30807382,25847.0,25846.0,0.1450765]
[1694059861205,3.5469305,25847.0,25846.0,0.1450765]
[1694059861823,3.30807382,25847.0,25846.0,0.1450765]
[1694059863035,3.28709382,25847.0,25846.0,0.1450765]
[1694059872888,3.26292203,25847.0,25846.0,0.1450765]
[1694059873088,3.28709382,25847.0,25846.0,0.1450765]
[1694059901248,3.31009382,25847.0,25846.0,0.1450765]
[1694059907431,3.30509382,25847.0,25846.0,0.1450765]
[1694059920655,2.50830982,25847.0,25846.0,0.1450765]
[1694059921279,3.26209382,25847.0,25846.0,0.1450765]
[1694059921532,3.28209382,25847.0,25846.0,0.1450765]
[1694059928349,3.2214195,25847.0,25846.0,0.1450765]
[1694059938606,3.2444195,25847.0,25846.0,0.1450765]
[1694059949467,3.63106477,25847.0,25846.0,0.1450765]
[1694059954299,3.2444195,25847.0,25846.0,0.1450765]
[1694059955508,2.4706355,25847.0,25846.0,0.1450765]
[1694059956358,2.4672355,25847.0,25846.0,0.1450765]
[1694059956561,3.2410195,25847.0,25846.0,0.1450765]
[1694059976192,3.55479988,25847.0,25846.0,0.1450765]
[1694059976429,3.2410195,25847.0,25846.0,0.1450765]
[1694059976898,3.55479988,25847.0,25846.0,0.1450765]
[1694059979723,3.94144515,25847.0,25846.0,0.1450765]
[1694059980765,3.55479988,25847.0,25846.0,0.1450765]
[1694059984923,3.2410195,25847.0,25846.0,0.1450765]
[1694059988636,3.30169377,25847.0,25846.0,0.1450765]
[1694059989350,2.52790977,25847.0,25846.0,0.1450765]
[1694059989480,1.75412577,25847.0,25846.0,0.1450765]
[1694059990286,2.52790977,25847.0,25846.0,0.1450765]
[1694059992170,3.34211744,25847.0,25846.0,0.1450765]
[1694059996818,1.02076544,25847.0,25846.0,0.1450765]
[1694059997018,3.34211744,25847.0,25846.0,0.1450765]
[1694059997151,3.34211744,25847.0,25846.0,0.08385714]
[1694059997559,3.34211744,25847.0,25846.0,0.14015267]
[1694060001531,3.34211744,25847.0,25846.0,0.14016394]
[1694060013499,0.22411002,25848.0,25847.0,0.12885417]
[1694060013694,1.23125261,25853.0,25852.0,0.01302596]
[1694060013695,0.27894579,25853.0,25852.0,0.01302596]
[1694060013883,0.81770379,25856.0,25854.0,0.01302596]
[1694060014137,1.59123979,25856.0,25855.0,0.01302596]
[1694060014349,0.81770379,25856.0,25855.0,0.01302596]
[1694060014756,0.81770379,25856.0,25855.0,0.01385028]
[1694060015368,1.11770379,25856.0,25855.0,0.01385028]
[1694060015761,1.11770379,25856.0,25855.0,0.01302596]
[1694060015974,1.14170379,25856.0,25855.0,0.01302596]
[1694060016188,1.11770379,25856.0,25855.0,0.01302596]
[1694060016813,0.6224289,25856.0,25855.0,0.01302596]
[1694060016992,0.6464289,25856.0,25855.0,0.01502596]
[1694060017197,0.6704289,25856.0,25855.0,0.01702596]
[1694060018015,0.6704289,25856.0,25855.0,0.01695541]
[1694060018231,1.05707417,25856.0,25855.0,0.01695541]
[1694060018748,0.77881706,25856.0,25855.0,0.01777787]
[1694060019690,1.55233106,25856.0,25855.0,0.01777787]
[1694060021823,1.78395228,25856.0,25855.0,0.01777787]
[1694060023695,1.96919993,25856.0,25855.0,0.01777787]
[1694060024150,1.73757871,25856.0,25855.0,0.01777787]
[1694060024607,0.96406471,25856.0,25855.0,0.01777787]
[1694060025062,1.10297925,25856.0,25855.0,0.01777787]
[1694060025556,0.9177316,25856.0,25855.0,0.01777787]
[1694060026450,0.9177316,25856.0,25855.0,0.08777787]
[1694060026718,1.01032152,25856.0,25855.0,0.08777787]
[1694060026956,1.01032152,25856.0,25855.0,0.14395308]
[1694060027625,0.87140698,25856.0,25855.0,0.14395308]
[1694060030796,0.77881706,25856.0,25855.0,0.14395308]
[1694060031444,0.87140698,25856.0,25855.0,0.14395308]
[1694060032702,0.77881706,25856.0,25855.0,0.14395308]
[1694060034147,1.55233106,25856.0,25855.0,0.14395308]
[1694060046510,1.64492098,25856.0,25855.0,0.14395308]
[1694060047459,0.87140698,25856.0,25855.0,0.14395308]
[1694060047668,0.77881706,25856.0,25855.0,0.14395308]
[1694060047892,0.73464527,25856.0,25855.0,1.03799708]
[1694060049557,0.82723519,25856.0,25855.0,1.03799708]
[1694060049765,0.43464527,25856.0,25855.0,1.03799708]
[1694060050227,0.43464527,25856.0,25855.0,0.14395308]
[1694060050464,0.43464527,25856.0,25855.0,0.91749708]
[1694060050845,0.52723519,25856.0,25855.0,1.03799708]
[1694060052276,0.43464527,25856.0,25855.0,1.03799708]
[1694060052675,0.52723519,25856.0,25855.0,1.81154108]
[1694060054634,0.048,25856.0,25855.0,1.82736929]
[1694060054872,0.048,25856.0,25855.0,2.60091329]
[1694060055316,0.09258992,25857.0,25855.0,2.59691329]
[1694060055455,0.09258992,25857.0,25856.0,0.1205]
[1694060055662,0.09258992,25857.0,25856.0,1.667528]
[1694060055914,0.13891454,25857.0,25856.0,1.667528]
[1694060056123,0.13891454,25857.0,25856.0,1.72367895]
[1694060056772,0.34816219,25857.0,25856.0,1.7264988]
[1694060057508,0.37216219,25857.0,25856.0,1.7264988]
[1694060057744,0.46486887,25857.0,25856.0,1.7264988]
[1694060058107,0.44086887,25857.0,25856.0,1.7264988]
[1694060058517,0.44086887,25857.0,25856.0,1.7284988]
[1694060058518,0.46486887,25857.0,25856.0,1.7284988]
[1694060058755,0.27962122,25857.0,25856.0,1.7284988]
[1694060058986,0.048,25857.0,25856.0,1.7284988]
[1694060059184,0.048,25857.0,25856.0,1.74145421]
[1694060059895,0.28017446,25857.0,25856.0,1.74145421]
[1694060060820,0.048,25857.0,25856.0,1.74145421]
[1694060068841,0.32625711,25857.0,25856.0,1.74145421]
[1694060086379,0.32659876,25857.0,25856.0,1.74145421]
[1694060090678,0.048,25857.0,25856.0,1.74145421]
[1694060091478,0.32663806,25857.0,25856.0,1.74145421]
[1694060091711,0.048,25857.0,25856.0,1.74145421]
[1694060092440,0.048,25857.0,25856.0,0.96794021]
[1694060105424,0.048,25857.0,25856.0,1.74145421]
[1694060112132,0.048,25857.0,25856.0,0.96794021]
[1694060113540,0.048,25857.0,25856.0,0.19442621]
[1694060114212,0.048,25857.0,25856.0,0.96794021]
[1694060115573,0.048,25857.0,25856.0,0.19442621]
[1694060119516,0.048,25857.0,25856.0,0.96794021]
[1694060122567,0.048,25857.0,25856.0,0.19442621]
[1694060128802,0.048,25857.0,25856.0,0.96794021]
[1694060137971,0.048,25857.0,25856.0,0.19442621]
[1694060146257,0.43464527,25857.0,25856.0,0.19442621]
[1694060167489,0.43464527,25857.0,25856.0,0.96794021]
[1694060172919,0.43464527,25857.0,25856.0,0.19442621]
[1694060173122,0.43464527,25857.0,25856.0,0.07392621]
[1694060176966,0.71935517,25857.0,25856.0,0.08975442]
[1694060178305,0.43464527,25857.0,25856.0,0.08975442]
[1694060180226,0.43464527,25857.0,25856.0,0.86326842]
[1694060188782,0.43464527,25857.0,25856.0,1.63678242]
[1694060193515,0.71345483,25857.0,25856.0,1.63678242]
[1694060198088,0.71345483,25857.0,25856.0,2.53079642]
[1694060200034,0.43464527,25857.0,25856.0,2.53079642]
[1694060200557,0.43464527,25857.0,25856.0,2.47382562]
[1694060200991,0.43464527,25857.0,25856.0,2.54263985]
[1694060201221,0.048,25857.0,25856.0,2.54263985]
[1694060201743,0.048,25857.0,25856.0,2.54345943]
[1694060202173,0.048,25857.0,25856.0,2.81861754]
[1694060202379,0.03700739,25859.0,25858.0,0.01295541]
[1694060202577,0.13931147,25862.0,25861.0,0.14878362]
[1694060202790,0.0927748,25862.0,25861.0,1.19730673]
[1694060203011,0.0927748,25862.0,25861.0,3.51740173]
[1694060203227,0.0927748,25862.0,25861.0,4.13610862]
[1694060204352,0.0947748,25862.0,25861.0,4.15810862]
[1694060204774,0.002,25862.0,25861.0,4.18298202]
[1694060205178,0.002,25862.0,25861.0,4.25298202]
[1694060206048,0.002,25862.0,25861.0,5.04742729]
[1694060206912,0.002,25862.0,25861.0,5.11615431]
[1694060207181,0.002,25862.0,25861.0,5.17615431]
[1694060207423,0.18577132,25867.0,25865.0,3.62956362]
[1694060207424,0.231937,25867.0,25865.0,3.62956362]
[1694060207657,0.231937,25867.0,25866.0,0.02878362]
[1694060207879,0.0927748,25868.0,25867.0,2.319555]
[1694060208105,0.0927748,25868.0,25867.0,2.440055]
[1694060208338,0.0929198,25869.0,25868.0,0.02878362]
[1694060208566,0.000145,25869.0,25868.0,1.69559562]
[1694060208798,0.000145,25869.0,25868.0,1.6964535]
[1694060209061,0.000145,25869.0,25868.0,2.4696095]
[1694060210251,0.000145,25869.0,25868.0,2.4796095]